bitfinex-derivatives/quotes_BTCF0:USTF0_20210104
["timestamp","ask_amount","ask_price","bid_price","bid_amount"]
[1609748243701,5.1792,32412.0,32377.0,0.1771]
[1609748244904,5.1792,32412.0,32388.0,0.14033567]
[1609748245103,0.12624,32417.0,32388.0,0.14033567]
[1609748246904,0.14033567,32391.0,32388.0,0.14033567]
[1609748247103,0.24345567,32391.0,32388.0,0.14033567]
[1609748252108,0.10312,32391.0,32389.0,5.1585]
[1609748252308,0.12624,32417.0,32389.0,5.1585]
[1609748252509,0.2819,32436.0,32388.0,0.14033567]
[1609748252809,0.2819,32436.0,32399.0,4.4317]
[1609748253011,0.2819,32436.0,32402.0,0.14033567]
[1609748254711,2.68076636,32441.0,32402.0,0.14033567]
[1609748254911,2.68076636,32441.0,32416.0,0.14033567]
[1609748255112,2.68076636,32441.0,32417.0,3.6153]
[1609748255514,2.68076636,32441.0,32416.0,0.14033567]
[1609748255713,2.81407636,32441.0,32416.0,0.14033567]
[1609748255913,0.13331,32441.0,32416.0,0.14033567]
[1609748256915,0.14033567,32417.0,32416.0,0.14033567]
[1609748257315,0.14849,32417.0,32416.0,0.70953567]
[1609748257613,0.14849,32417.0,32416.0,0.14033567]
[1609748257813,0.14849,32417.0,32416.0,4.63393567]
[1609748262115,0.13331,32441.0,32416.0,4.63393567]
[1609748262318,0.09863,32424.0,32416.0,4.63393567]
[1609748262917,0.09863,32424.0,32423.0,0.14033567]
[1609748267524,0.14033567,32427.0,32423.0,0.14033567]
[1609748269625,0.23909567,32427.0,32410.0,4.1886]
[1609748271128,0.09876,32427.0,32417.0,0.14033567]
[1609748273130,0.27681567,32418.0,32417.0,0.14033567]
[1609748273830,0.27681567,32418.0,32410.0,4.1886]
[1609748275032,0.14033567,32411.0,32410.0,4.1886]
[1609748275233,0.26672567,32411.0,32410.0,4.1886]
[1609748275833,0.26672567,32411.0,32407.0,0.14033567]
[1609748282038,0.26672567,32411.0,32394.0,0.1771]
[1609748283040,0.14033567,32395.0,32392.0,0.14033567]
[1609748283242,0.14033567,32395.0,32379.0,0.356]
[1609748283445,0.29631567,32395.0,32379.0,0.356]
[1609748285049,0.29631567,32395.0,32381.0,0.14033567]
[1609748285050,0.15598,32395.0,32381.0,0.14033567]
[1609748287051,0.14033567,32382.0,32381.0,0.14033567]
[1609748287251,0.28163567,32382.0,32381.0,0.14033567]
[1609748288853,0.28163567,32382.0,32379.0,0.356]
[1609748289054,0.28163567,32382.0,32379.0,0.49633567]
[1609748289954,0.28163567,32382.0,32379.0,0.356]
[1609748293058,0.28163567,32382.0,32381.0,0.14033567]
[1609748300668,0.28163567,32382.0,32373.0,4.4693]
[1609748300868,4.1931,32377.0,32354.0,0.1771]
[1609748301271,0.14033567,32361.0,32360.0,0.14033567]
[1609748302072,0.28062567,32361.0,32360.0,0.14033567]
[1609748305176,0.28062567,32361.0,32353.0,4.09643567]
[1609748306377,0.28062567,32361.0,32353.0,0.14033567]
[1609748306582,4.76082567,32361.0,32352.0,0.356]
[1609748307278,0.14033567,32353.0,32352.0,0.356]
[1609748313987,0.14033567,32353.0,32340.0,0.14033567]
[1609748314185,4.6487,32351.0,32340.0,0.14033567]
[1609748315191,0.14033567,32341.0,32340.0,0.14033567]
[1609748315389,0.14033567,32341.0,32324.0,0.1771]
[1609748315590,4.1484,32340.0,32324.0,0.1771]
[1609748316591,0.0932,32339.0,32324.0,0.1771]
[1609748317189,0.14033567,32325.0,32324.0,0.1771]
[1609748317389,0.14033567,32325.0,32321.0,0.14033567]
[1609748318892,0.0929,32328.0,32321.0,0.14033567]
[1609748318893,0.0925,32324.0,32321.0,0.14033567]
[1609748319991,0.0825,32324.0,32321.0,0.14033567]
[1609748320391,0.03928311,34061.0,32321.0,0.14033567]
[1609748320692,0.03928311,34061.0,32321.0,0.29695567]
[1609748321194,2.63887945,32397.0,32339.0,0.14033567]
[1609748321395,0.094,32341.0,32339.0,0.14033567]
[1609748321593,0.03928311,34061.0,32339.0,0.14033567]
[1609748322093,2.82737352,32400.0,32325.0,0.1771]
[1609748322494,0.6423,32341.0,32325.0,0.1771]
[1609748322694,0.7348,32341.0,32325.0,0.1771]
[1609748323294,0.7348,32341.0,32332.0,0.14033567]
[1609748323504,0.0925,32341.0,32332.0,0.14033567]
[1609748324402,0.10769,32342.0,32332.0,0.14033567]
[1609748324799,0.03928311,34119.0,32332.0,0.14033567]
[1609748324999,2.63975721,32395.0,32332.0,0.14033567]
[1609748325202,0.14033567,32333.0,32332.0,0.14033567]
[1609748326401,0.23353567,32333.0,32332.0,0.14033567]
[1609748327302,0.14033567,32333.0,32332.0,0.14033567]
[1609748328402,0.23303567,32333.0,32324.0,0.0095]
[1609748328805,4.9013,32329.0,32324.0,0.0095]
[1609748329206,0.23303567,32333.0,32324.0,0.0095]
[1609748329406,3.9524,32327.0,32326.0,0.14033567]
[1609748330308,4.0449,32327.0,32326.0,0.14033567]
[1609748330508,3.9524,32327.0,32326.0,0.14033567]
[1609748330708,0.13709,32340.0,32326.0,0.14033567]
[1609748331008,4.1084,32345.0,32326.0,0.14033567]
[1609748331208,0.14033567,32327.0,32326.0,0.14033567]
[1609748337214,5.32453567,32327.0,32326.0,0.14033567]
[1609748338315,0.14033567,32327.0,32326.0,0.14033567]
[1609748339917,0.87653567,32327.0,32324.0,0.0095]
[1609748341221,0.14033567,32327.0,32324.0,0.0095]
[1609748341419,3.7518,32325.0,32324.0,0.0095]
[1609748341619,3.7518,32325.0,32294.0,4.093]
[1609748341819,0.14033567,32327.0,32295.0,0.2821]
[1609748342020,5.0196,32313.0,32301.0,0.47905]
[1609748343426,0.14033567,32302.0,32301.0,0.47905]
[1609748343825,0.67503567,32302.0,32301.0,0.47905]
[1609748344529,0.67503567,32302.0,32301.0,0.12305]
[1609748344729,0.14033567,32302.0,32301.0,0.12305]
[1609748345427,0.14033567,32302.0,32301.0,0.26338567]
[1609748345629,0.11465,32320.0,32301.0,0.26338567]
[1609748347330,0.11465,32320.0,32301.0,0.26238567]
[1609748347529,0.11465,32320.0,32301.0,0.12205]
[1609748347831,4.3331,32321.0,32296.0,0.1761]
[1609748348029,4.3331,32321.0,32297.0,0.1771]
[1609748348430,0.15466,32327.0,32297.0,0.1771]
[1609748348630,4.626,32322.0,32297.0,0.1771]
[1609748348832,0.13431,32322.0,32297.0,0.1771]
[1609748349031,4.3948,32315.0,32297.0,0.1771]
[1609748349432,0.14033567,32300.0,32299.0,0.14033567]
[1609748349734,4.3948,32315.0,32299.0,0.28078567]
[1609748351435,0.14033567,32300.0,32299.0,0.28078567]
[1609748352635,0.14033567,32300.0,32299.0,0.14045]
[1609748353436,4.3948,32315.0,32299.0,0.28078567]
[1609748353737,0.13431,32322.0,32299.0,0.28078567]
[1609748353938,3.6376,32335.0,32299.0,0.28078567]
[1609748355540,0.14033567,32312.0,32306.0,0.14033567]
[1609748357441,0.14033567,32307.0,32306.0,0.14033567]
[1609748359041,0.13933557,32307.0,32306.0,0.14033567]
[1609748361043,0.13933557,32307.0,32299.0,0.14045]
[1609748361244,4.1435,32334.0,32300.0,0.1771]
[1609748361444,4.1435,32334.0,32314.0,0.14033567]
[1609748361845,3.985,32362.0,32314.0,0.14033567]
[1609748362044,3.985,32362.0,32315.0,0.1771]
[1609748362649,3.985,32362.0,32316.0,0.2971]
[1609748363447,3.985,32362.0,32340.0,0.14033567]
[1609748363648,0.2916,32382.0,32340.0,0.14033567]
[1609748363847,2.6288532,32385.0,32340.0,0.14033567]
[1609748364752,2.63101966,32388.0,32340.0,0.14033567]
[1609748365552,0.14033567,32361.0,32360.0,0.14033567]
[1609748365952,0.29686567,32361.0,32341.0,0.2876]
[1609748366153,3.7816,32360.0,32341.0,0.2876]
[1609748366755,0.29686567,32361.0,32341.0,0.2876]
[1609748367456,0.14033567,32342.0,32341.0,0.2876]
[1609748367858,0.14033567,32342.0,32339.0,0.14033567]
[1609748368958,0.15653,32361.0,32339.0,0.14033567]
[1609748369158,4.4926,32351.0,32339.0,0.14033567]
[1609748369558,0.12498,32354.0,32350.0,0.14033567]
[1609748370363,0.12498,32354.0,32334.0,0.13837]
[1609748370560,0.12498,32354.0,32330.0,3.9693]
[1609748371561,0.12498,32354.0,32343.0,0.14033567]
[1609748373364,4.2743,32349.0,32343.0,0.14033567]
[1609748373565,0.14033567,32344.0,32343.0,0.14033567]
[1609748373765,0.25625567,32344.0,32327.0,0.1067]
[1609748374165,0.25625567,32344.0,32318.0,4.4725]
[1609748375471,0.11592,32344.0,32336.0,0.14033567]
[1609748377575,0.14033567,32337.0,32336.0,0.14033567]
[1609748377773,0.27617567,32337.0,32323.0,0.14234]
[1609748377975,0.27617567,32337.0,32318.0,4.4725]
[1609748378374,0.27617567,32337.0,32316.0,0.2742]
[1609748378975,3.6469,32331.0,32316.0,0.2742]
[1609748379377,3.6469,32331.0,32310.0,0.11114]
[1609748379576,0.14033567,32327.0,32323.0,0.14033567]
[1609748379977,0.14033567,32327.0,32310.0,0.11114]
[1609748380583,4.8605,32319.0,32310.0,0.11114]
[1609748381079,4.8605,32319.0,32300.0,0.5331]
[1609748381680,4.8605,32319.0,32311.0,0.14033567]
[1609748381882,0.11107,32330.0,32311.0,0.14033567]
[1609748382883,5.1545,32321.0,32311.0,0.14033567]
[1609748383684,5.1545,32321.0,32307.0,0.11225]
[1609748383685,5.1545,32321.0,32316.0,0.14033567]
[1609748383884,0.11107,32330.0,32307.0,0.11225]
[1609748384984,4.5195,32323.0,32307.0,0.11225]
[1609748385587,4.5195,32323.0,32311.0,0.14033567]
[1609748386687,0.11573,32324.0,32311.0,0.14033567]
[1609748387287,0.11573,32324.0,32307.0,0.11225]
[1609748387487,0.11573,32324.0,32300.0,0.5331]
[1609748387689,0.14033567,32314.0,32310.0,0.14033567]
[1609748392798,0.14033567,32314.0,32300.0,0.5331]
[1609748393596,3.87743,32324.0,32300.0,0.5331]
[1609748395399,0.11573,32324.0,32300.0,0.5331]
[1609748395600,4.4519,32335.0,32307.0,0.14033567]
[1609748397701,4.4519,32335.0,32311.0,0.14033567]
[1609748399606,0.14033567,32312.0,32311.0,0.14033567]
[1609748399806,0.14033567,32312.0,32306.0,0.09733]
[1609748401009,0.14033567,32312.0,32300.0,0.5331]
[1609748401708,0.14033567,32312.0,32306.0,0.14033567]
[1609748403711,0.14033567,32312.0,32311.0,0.14033567]
[1609748404912,0.10917,32317.0,32311.0,0.14033567]
[1609748405112,0.11592,32344.0,32311.0,0.14033567]
[1609748405312,0.11592,32344.0,32320.0,4.6487]
[1609748405512,0.2709,32368.0,32320.0,4.6487]
[1609748405714,0.2709,32368.0,32334.0,0.14033567]
[1609748405915,2.62632112,32369.0,32334.0,0.14033567]
[1609748406114,2.62632112,32369.0,32335.0,3.5364]
[1609748406512,2.77017112,32369.0,32334.0,0.14033567]
[1609748406714,4.6259,32368.0,32334.0,0.14033567]
[1609748407713,4.6259,32368.0,32340.0,0.14033567]
[1609748409715,0.14033567,32341.0,32340.0,0.14033567]
[1609748414324,0.15748,32348.0,32340.0,3.64013567]
[1609748415424,0.11355,32355.0,32340.0,3.64013567]
[1609748415624,0.14385,32369.0,32340.0,3.64013567]
[1609748415824,4.8144,32377.0,32353.0,0.14033567]
[1609748416424,0.291,32391.0,32353.0,0.14033567]
[1609748416825,2.63599205,32397.0,32353.0,0.14033567]
[1609748417326,7.40789668,32398.0,32353.0,0.14033567]
[1609748417725,0.14033567,32358.0,32353.0,0.14033567]
[1609748419727,0.14033567,32354.0,32353.0,0.14033567]
[1609748420529,0.14033567,32354.0,32341.0,0.11994]
[1609748421729,0.11439,32360.0,32350.0,0.14033567]
[1609748423029,4.7975,32378.0,32350.0,0.14033567]
[1609748423832,0.14033567,32351.0,32350.0,0.14033567]
[1609748425733,0.14033567,32351.0,32350.0,0.84083567]
[1609748436456,0.11029,32365.0,32350.0,0.84083567]
[1609748436749,4.3437,32389.0,32350.0,0.84083567]
[1609748437954,4.3437,32389.0,32357.0,0.14033567]
[1609748438361,4.3437,32389.0,32357.0,0.69043567]
[1609748439957,0.14033567,32358.0,32357.0,0.69043567]
[1609748442660,0.11307,32370.0,32357.0,0.69043567]
[1609748443461,0.11307,32370.0,32357.0,0.14033567]
[1609748443660,0.11307,32370.0,32364.0,4.0371]
[1609748443963,0.11307,32370.0,32369.0,0.14033567]
[1609748445663,0.14033567,32374.0,32369.0,0.14033567]
[1609748446063,0.14033567,32370.0,32369.0,0.14033567]
[1609748446263,0.14033567,32370.0,32356.0,0.15542]
[1609748447165,0.14033567,32370.0,32355.0,4.0181]
[1609748448067,0.13981,32375.0,32360.0,0.14033567]
[1609748448968,0.13981,32375.0,32355.0,4.0181]
[1609748450168,0.13981,32375.0,32358.0,0.14033567]
[1609748451370,3.4607,32381.0,32358.0,0.14033567]
[1609748451772,3.4607,32381.0,32355.0,4.0181]
[1609748451972,3.59993,32381.0,32355.0,4.0181]
[1609748452173,3.59993,32381.0,32358.0,0.14033567]
[1609748454180,0.14033567,32359.0,32358.0,0.14033567]
[1609748455180,0.14033567,32359.0,32355.0,4.0181]
[1609748458084,0.26737567,32359.0,32355.0,4.0181]
[1609748458284,0.26737567,32359.0,32351.0,0.14033567]
[1609748458484,3.9163,32357.0,32340.0,0.1771]
[1609748458683,3.9163,32357.0,32333.0,4.4027]
[1609748458883,0.26737567,32359.0,32323.0,0.356]
[1609748459085,4.9276,32350.0,32332.0,0.13378]
[1609748459285,5.04922,32350.0,32332.0,0.13378]
[1609748460286,0.14033567,32333.0,32330.0,0.14033567]
[1609748460485,0.14033567,32333.0,32321.0,0.4518]
[1609748460885,0.14033567,32333.0,32321.0,0.1771]
[1609748462287,0.13617,32337.0,32322.0,0.14033567]
[1609748464288,0.14033567,32323.0,32322.0,0.14033567]
[1609748464688,0.14033567,32323.0,32321.0,0.1771]
[1609748464888,3.5088,32322.0,32314.0,0.1333]
[1609748465288,0.14033567,32323.0,32314.0,0.1333]
[1609748465889,4.7812,32315.0,32314.0,0.1333]
[1609748466290,4.92153567,32315.0,32314.0,0.1333]
[1609748466491,4.92153567,32315.0,32307.0,0.42131567]
[1609748468392,0.14033567,32308.0,32307.0,0.42131567]
[1609748468592,0.83703567,32308.0,32307.0,0.42131567]
[1609748468793,0.83703567,32308.0,32307.0,0.28098]
[1609748469194,0.83703567,32308.0,32307.0,0.10388]
[1609748469396,0.14033567,32308.0,32307.0,0.10388]
[1609748470294,4.39273567,32308.0,32307.0,0.10388]
[1609748470694,0.14033567,32308.0,32307.0,0.10388]
[1609748471094,0.14033567,32308.0,32302.0,0.14033567]
[1609748471594,0.14033567,32308.0,32299.0,0.356]
[1609748471998,0.14033567,32308.0,32291.0,0.1771]
[1609748472197,4.492,32292.0,32291.0,0.1771]
[1609748472397,4.63233567,32292.0,32291.0,0.1771]
[1609748473097,4.63233567,32292.0,32279.0,2.09299097]
[1609748473296,0.14033567,32292.0,32279.0,2.09299097]
[1609748473497,3.5024,32281.0,32279.0,2.09299097]
[1609748473698,3.5024,32281.0,32277.0,0.1771]
[1609748474297,0.14033567,32280.0,32278.0,0.14033567]
[1609748474998,3.884,32299.0,32278.0,0.14033567]
[1609748475199,0.14015,32305.0,32278.0,0.14033567]
[1609748475200,0.14015,32305.0,32284.0,3.5757]
[1609748475900,0.1433,32313.0,32284.0,3.5757]
[1609748476300,0.1433,32313.0,32306.0,0.14033567]
[1609748477100,3.9638,32332.0,32306.0,0.14033567]
[1609748477700,3.9638,32332.0,32307.0,0.7326]
[1609748478102,0.2821,32352.0,32306.0,0.14033567]
[1609748478303,0.14033567,32318.0,32317.0,0.14033567]
[1609748478905,0.15481,32336.0,32317.0,0.14033567]
[1609748479303,0.15481,32336.0,32317.0,0.28146567]
[1609748480303,0.15481,32336.0,32325.0,0.14033567]
[1609748482408,0.15481,32336.0,32325.0,0.65763567]
[1609748482608,0.15481,32336.0,32325.0,0.14033567]
[1609748482806,0.15481,32336.0,32330.0,3.7604]
[1609748483018,3.9997,32369.0,32330.0,3.7604]
[1609748484311,0.14033567,32336.0,32330.0,3.7604]
[1609748484911,0.0928,32335.0,32330.0,3.7604]
[1609748485113,0.14033567,32336.0,32330.0,3.7604]
[1609748485512,0.14033567,32336.0,32329.0,0.14033567]
[1609748486212,0.0935,32335.0,32329.0,0.14033567]
[1609748486418,0.0935,32335.0,32334.0,0.14033567]
[1609748486821,0.0919,32336.0,32334.0,5.03783567]
[1609748487023,0.094,32340.0,32334.0,5.03783567]
[1609748487414,0.15914,32341.0,32334.0,5.03783567]
[1609748487714,4.7465,32369.0,32334.0,5.03783567]
[1609748487913,0.0938,32368.0,32334.0,0.14033567]
[1609748488113,0.22075,32368.0,32344.0,5.1157]
[1609748488313,0.12695,32368.0,32355.0,0.14033567]
[1609748488514,0.12695,32368.0,32356.0,0.552]
[1609748488714,0.12695,32368.0,32355.0,0.14033567]
[1609748489114,0.12695,32368.0,32362.0,4.694]
[1609748489514,3.38452447,32392.0,32362.0,4.694]
[1609748489715,2.63522359,32381.0,32362.0,4.694]
[1609748490317,2.63522359,32381.0,32375.0,0.14033567]
[1609748490715,2.64725702,32403.0,32375.0,0.14033567]
[1609748491116,2.64725702,32403.0,32362.0,4.694]
[1609748491517,2.80026702,32403.0,32362.0,4.694]
[1609748492317,0.14033567,32369.0,32366.0,0.14033567]
[1609748496322,0.14033567,32369.0,32362.0,0.14033567]
[1609748498426,0.14033567,32363.0,32362.0,0.14033567]
[1609748498933,0.27745567,32363.0,32362.0,0.14033567]
[1609748502134,0.27745567,32363.0,32355.0,3.621]
[1609748502431,0.13712,32363.0,32360.0,0.14033567]
[1609748503233,0.13712,32363.0,32343.0,0.10384]
[1609748503433,0.13712,32363.0,32336.0,3.7812]
[1609748503833,3.78232,32372.0,32336.0,3.7812]
[1609748504034,0.10137,32363.0,32335.0,0.11296]
[1609748504233,0.10137,32363.0,32345.0,3.6283]
[1609748504434,0.14033567,32348.0,32347.0,0.14033567]
[1609748504836,0.23213567,32348.0,32347.0,0.14033567]
[1609748505835,0.23213567,32348.0,32339.0,3.6679]
[1609748506036,0.0918,32348.0,32335.0,0.11288]
[1609748506236,0.11054,32352.0,32347.0,4.9426]
[1609748506437,0.24170567,32363.0,32351.0,0.14033567]
[1609748508142,0.0927,32362.0,32351.0,0.14033567]
[1609748508540,0.14033567,32363.0,32361.0,0.14033567]
[1609748508740,0.14033567,32363.0,32350.0,0.14149]
[1609748508941,0.24486567,32363.0,32345.0,4.8229]
[1609748509542,0.0936,32362.0,32345.0,4.8229]
[1609748509742,0.24486567,32363.0,32345.0,4.8229]
[1609748510443,0.14033567,32346.0,32345.0,4.8229]
[1609748510745,0.29255567,32346.0,32345.0,4.8229]
[1609748511343,0.29255567,32346.0,32318.0,0.1771]
[1609748511543,0.29255567,32346.0,32325.0,4.4109]
[1609748511944,0.0918,32345.0,32325.0,4.4109]
[1609748512543,0.0918,32345.0,32338.0,0.14033567]
[1609748513846,0.0918,32345.0,32338.0,5.17683567]
[1609748514547,0.14033567,32339.0,32338.0,5.17683567]
[1609748515647,0.23383567,32339.0,32338.0,5.17683567]
[1609748516150,0.23383567,32339.0,32338.0,0.14033567]
[1609748516947,0.14033567,32339.0,32338.0,0.14033567]
[1609748517149,0.14033567,32339.0,32328.0,3.6997]
[1609748517348,0.28872567,32339.0,32328.0,3.6997]
[1609748518651,0.14033567,32329.0,32328.0,3.84003567]
[1609748518849,0.28284567,32329.0,32328.0,3.84003567]
[1609748521653,0.28284567,32329.0,32328.0,0.14033567]
[1609748522053,0.28284567,32329.0,32317.0,4.2951]
[1609748522555,0.14033567,32318.0,32317.0,4.2951]
[1609748523156,0.23193567,32318.0,32317.0,4.2951]
[1609748523357,0.12152,32321.0,32317.0,4.2951]
[1609748524570,0.12152,32321.0,32320.0,0.14033567]
[1609748528163,0.14033567,32323.0,32320.0,0.14033567]
[1609748529666,0.14033567,32323.0,32312.0,4.9114]
[1609748530267,0.14033567,32323.0,32312.0,4.6058]
[1609748530670,0.14033567,32313.0,32305.0,0.14033567]
[1609748530869,0.23770567,32313.0,32305.0,0.14033567]
[1609748531470,0.23770567,32313.0,32288.0,4.0203]
[1609748532472,0.0937,32312.0,32288.0,4.0203]
[1609748532673,0.09737,32313.0,32299.0,0.14033567]
[1609748533573,0.09737,32313.0,32289.0,0.15903]
[1609748534575,3.4968,32301.0,32289.0,0.15903]
[1609748534774,0.14033567,32290.0,32289.0,0.29936567]
[1609748534974,0.84193567,32290.0,32289.0,0.29936567]
[1609748535475,0.84193567,32290.0,32289.0,0.15903]
[1609748536477,0.84193567,32290.0,32282.0,0.10911]
[1609748536678,0.7016,32290.0,32286.0,0.14033567]
[1609748536876,0.7956,32290.0,32282.0,0.10911]
[1609748537277,0.7016,32290.0,32282.0,0.10911]
[1609748537877,0.7016,32290.0,32267.0,0.4654]
[1609748538277,0.7016,32290.0,32267.0,0.1771]
[1609748538679,0.0923,32289.0,32281.0,0.14033567]
[1609748538879,0.7016,32290.0,32281.0,0.14033567]
[1609748539981,0.0942,32289.0,32281.0,0.14033567]
[1609748540382,0.0942,32289.0,32276.0,0.10619]
[1609748540580,0.10417,32295.0,32276.0,0.10619]
[1609748540780,0.14033567,32286.0,32284.0,0.14033567]
[1609748547993,0.09826,32288.0,32284.0,0.14033567]
[1609748548792,0.24450567,32295.0,32284.0,0.14033567]
[1609748550693,0.24450567,32295.0,32294.0,0.14033567]
[1609748551494,0.24450567,32295.0,32289.0,0.1316]
[1609748551895,0.24450567,32295.0,32281.0,0.11074]
[1609748552298,4.2774,32288.0,32270.0,0.32913]
[1609748552497,4.41513,32288.0,32270.0,0.15203]
[1609748552697,4.41513,32288.0,32273.0,0.14033567]
[1609748553698,4.41513,32288.0,32263.0,0.10953]
[1609748553898,4.41513,32288.0,32254.0,0.1771]
[1609748554699,4.41513,32288.0,32275.0,0.14033567]
[1609748554902,4.41513,32288.0,32256.0,0.10648]
[1609748556802,4.41513,32288.0,32276.0,0.14033567]
[1609748557701,4.41513,32288.0,32256.0,0.10648]
[1609748557902,0.0934,32287.0,32256.0,0.10648]
[1609748558102,4.41513,32288.0,32256.0,0.10648]
[1609748558802,0.13773,32288.0,32279.0,0.14033567]
[1609748559003,0.39907,32295.0,32279.0,0.14033567]
[1609748559202,0.39907,32295.0,32256.0,0.10648]
[1609748560204,0.39907,32295.0,32254.0,0.1771]
[1609748560606,0.39907,32295.0,32254.0,0.8308]
[1609748560805,0.39907,32295.0,32278.0,0.14033567]
[1609748562908,0.14033567,32279.0,32278.0,0.14033567]
[1609748568417,0.14033567,32279.0,32262.0,0.14393]
[1609748568617,0.14033567,32279.0,32259.0,0.356]
[1609748568817,0.14749,32281.0,32270.0,0.14033567]
[1609748569217,3.8964,32287.0,32270.0,0.14033567]
[1609748569418,0.23736,32286.0,32270.0,0.14033567]
[1609748569617,0.23736,32286.0,32254.0,0.1771]
[1609748569816,4.301,32278.0,32254.0,0.1771]
[1609748570019,4.40889,32278.0,32236.0,4.7773]
[1609748570620,4.6136,32267.0,32235.0,0.356]
[1609748570822,4.74943,32267.0,32249.0,0.14033567]
[1609748571520,4.74943,32267.0,32236.0,0.11213]
[1609748571720,0.13583,32267.0,32236.0,0.11213]
[1609748572920,0.13583,32267.0,32241.0,0.14033567]
[1609748573221,0.0928,32266.0,32241.0,0.14033567]
[1609748573921,0.13583,32267.0,32241.0,0.14033567]
[1609748574322,0.13583,32267.0,32236.0,0.11213]
[1609748574922,0.13583,32267.0,32262.0,0.14033567]
[1609748575522,0.13583,32267.0,32248.0,0.14917]
[1609748575923,4.6412,32268.0,32248.0,0.14917]
[1609748576122,0.10909,32267.0,32248.0,0.14917]
[1609748576322,0.10909,32267.0,32236.0,0.11213]
[1609748576523,0.10909,32267.0,32231.0,0.1771]
[1609748576924,0.10909,32267.0,32251.0,0.14033567]
[1609748577525,0.10909,32267.0,32236.0,0.14745]
[1609748578827,0.10909,32267.0,32250.0,0.14033567]
[1609748580829,0.24942567,32267.0,32266.0,0.14033567]
[1609748581431,0.10789,32278.0,32266.0,0.14033567]
[1609748581832,4.6864,32291.0,32266.0,0.14033567]
[1609748582033,0.2899,32296.0,32258.0,0.12306]
[1609748582332,0.2899,32296.0,32262.0,3.547]
[1609748582533,4.9964,32308.0,32262.0,3.547]
[1609748582935,4.9964,32308.0,32278.0,0.14033567]
[1609748583136,0.2753,32314.0,32278.0,0.14033567]
[1609748583336,3.7165,32310.0,32266.0,4.22]
[1609748583536,0.2753,32314.0,32258.0,0.12306]
[1609748583736,4.3512,32296.0,32258.0,0.12306]
[1609748583937,4.50871,32296.0,32258.0,0.12306]
[1609748584136,4.50871,32296.0,32250.0,3.7333]
[1609748584337,4.9338,32281.0,32247.0,0.1771]
[1609748584538,5.03062,32281.0,32247.0,0.1771]
[1609748584938,5.03062,32281.0,32257.0,0.14033567]
[1609748585240,5.03062,32281.0,32247.0,0.1771]
[1609748586039,0.09682,32281.0,32247.0,0.1771]
[1609748586241,5.117,32267.0,32247.0,0.1771]
[1609748586440,5.21629,32267.0,32247.0,0.1771]
[1609748586839,5.21629,32267.0,32220.0,4.4611]
[1609748586840,0.14033567,32248.0,32243.0,0.14033567]
[1609748587240,0.15729,32252.0,32243.0,0.14033567]
[1609748587843,0.15729,32252.0,32236.0,0.1771]
[1609748588040,0.15729,32252.0,32235.0,4.69238]
[1609748588942,0.15729,32252.0,32251.0,0.14033567]
[1609748591744,0.15729,32252.0,32236.0,0.1771]
[1609748592347,0.14033567,32253.0,32236.0,0.1771]
[1609748592947,3.8989,32245.0,32239.0,0.14033567]
[1609748593947,0.0938,32244.0,32239.0,0.14033567]
[1609748594947,0.14033567,32240.0,32239.0,0.14033567]
[1609748597551,0.23443567,32240.0,32239.0,0.14033567]
[1609748597956,0.14033567,32240.0,32239.0,0.14033567]
[1609748598854,0.23363567,32240.0,32239.0,0.14033567]
[1609748599054,0.14033567,32240.0,32239.0,0.14033567]
[1609748599958,0.23333567,32240.0,32239.0,0.14033567]
[1609748601058,0.14033567,32240.0,32239.0,0.14033567]
[1609748603665,0.23423567,32240.0,32239.0,0.14033567]
[1609748604369,0.14033567,32240.0,32239.0,0.14033567]
[1609748605470,0.23453567,32240.0,32239.0,0.14033567]
[1609748606370,0.0942,32240.0,32239.0,0.14033567]
[1609748606671,0.16009,32247.0,32239.0,0.14033567]
[1609748606871,5.1016,32249.0,32239.0,0.14033567]
[1609748607071,5.1016,32249.0,32243.0,0.14033567]
[1609748608070,5.1016,32249.0,32230.0,0.1771]
[1609748609071,5.1016,32249.0,32244.0,0.14033567]
[1609748610172,0.0926,32248.0,32244.0,0.14033567]
[1609748611073,0.14033567,32245.0,32244.0,0.14033567]
[1609748613273,0.23193567,32245.0,32244.0,0.14033567]
[1609748613674,0.14033567,32245.0,32244.0,0.14033567]
[1609748614274,0.11856,32250.0,32244.0,0.14033567]
[1609748614476,4.4105,32272.0,32244.0,0.14033567]
[1609748614675,0.0937,32266.0,32244.0,0.14033567]
[1609748615077,4.4105,32272.0,32257.0,0.14033567]
[1609748615078,0.14033567,32258.0,32257.0,0.14033567]
[1609748615679,0.2981,32280.0,32257.0,0.14033567]
[1609748616080,0.0928,32266.0,32257.0,0.14033567]
[1609748616279,0.0927,32265.0,32257.0,0.14033567]
[1609748616479,0.13724,32267.0,32257.0,0.14033567]
[1609748617083,0.13724,32267.0,32266.0,0.14033567]
[1609748617684,0.22884,32267.0,32266.0,0.14033567]
[1609748618083,0.13724,32267.0,32266.0,0.14033567]
[1609748618283,0.14033567,32269.0,32266.0,0.14033567]
[1609748618484,2.57105893,32312.0,32255.0,0.15329]
[1609748618883,0.2868,32306.0,32255.0,0.15329]
[1609748619083,0.0941,32283.0,32277.0,0.14033567]
[1609748619384,0.13094,32283.0,32277.0,0.14033567]
[1609748620486,0.0935,32282.0,32277.0,0.14033567]
[1609748621187,0.14033567,32278.0,32277.0,0.14033567]
[1609748621888,0.14033567,32278.0,32259.0,4.6009]
[1609748622088,0.14033567,32278.0,32255.0,0.15329]
[1609748622290,0.14033567,32278.0,32248.0,0.10755]
[1609748622488,0.14033567,32278.0,32241.0,3.9198]
[1609748622989,0.0919,32277.0,32241.0,3.9198]
[1609748623489,0.0919,32277.0,32271.0,0.14033567]
[1609748623991,0.0919,32277.0,32260.0,0.12517]
[1609748624192,0.13094,32283.0,32260.0,0.12517]
[1609748624392,5.1224,32268.0,32260.0,0.12517]
[1609748624592,0.07138299,34172.0,32258.0,0.13291]
[1609748624795,4.8264,32261.0,32258.0,0.13291]
[1609748625594,0.14033567,32259.0,32258.0,0.13291]
[1609748625994,0.14033567,32259.0,32244.0,0.14033567]
[1609748626396,0.14033567,32259.0,32230.0,0.1771]
[1609748626597,4.5344,32246.0,32230.0,0.1771]
[1609748626997,4.5344,32246.0,32217.0,0.356]